[Event "Late-Titled-Tuesday-Blitz-September-12-2023"]
[Site "Chess.com"]
[Date "2023.09.12"]
[Round "5"]
[White "Chessdude1987"]
[Black "Andrej2004"]
[Result "1-0"]
[WhiteElo "2437"]
[BlackElo "2547"]
[TimeControl "180+1"]
[EndTime "14:55:02 PDT"]
[Termination "Chessdude1987 won by resignation"]

1. e4 {[%clk 0:03:00.9]} 1... c5 {[%clk 0:02:59.3]} 2. Nf3 {[%clk 0:03:00.8]}
2... g6 {[%clk 0:02:57.4]} 3. d4 {[%clk 0:02:59.8]} 3... cxd4 {[%clk 0:02:57.3]}
4. c3 {[%clk 0:03:00.5]} 4... d5 {[%clk 0:02:55.1]} 5. exd5 {[%clk 0:02:58.3]}
5... Qxd5 {[%clk 0:02:53.5]} 6. cxd4 {[%clk 0:02:58.3]} 6... Nf6 {[%clk
0:02:40.9]} 7. Nc3 {[%clk 0:02:58.2]} 7... Qa5 {[%clk 0:02:40.7]} 8. Bc4 {[%clk
0:02:54.9]} 8... Bg7 {[%clk 0:02:40.3]} 9. Ne5 {[%clk 0:02:47.4]} 9... O-O
{[%clk 0:02:38.3]} 10. O-O {[%clk 0:02:41.9]} 10... Nc6 {[%clk 0:02:38]} 11. Re1
{[%clk 0:02:22.9]} 11... e6 {[%clk 0:02:17.8]} 12. Bf4 {[%clk 0:01:42]} 12...
Rd8 {[%clk 0:02:08.9]} 13. Nxc6 {[%clk 0:01:03.4]} 13... bxc6 {[%clk 0:02:09.8]}
14. Be5 {[%clk 0:01:03.8]} 14... Bb7 {[%clk 0:02:02.1]} 15. Qf3 {[%clk
0:01:01.3]} 15... Ne8 {[%clk 0:02:01.5]} 16. b4 {[%clk 0:01:00.4]} 16... Qxb4
{[%clk 0:01:56.7]} 17. Bxe6 {[%clk 0:00:49.8]} 17... fxe6 {[%clk 0:01:54.5]} 18.
Rab1 {[%clk 0:00:48.1]} 18... Qe7 {[%clk 0:01:53.6]} 19. Ne4 {[%clk 0:00:46.1]}
19... c5 {[%clk 0:01:23.5]} 20. Rxb7 {[%clk 0:00:42.1]} 20... Qf8 {[%clk
0:01:01.8]} 21. Qh3 {[%clk 0:00:29.4]} 21... Qf5 {[%clk 0:00:53]} 22. g4 {[%clk
0:00:21.4]} 22... Qf8 {[%clk 0:00:36.9]} 23. Nxc5 {[%clk 0:00:20.1]} 23... Rd6
{[%clk 0:00:18.4]} 24. Bxd6 {[%clk 0:00:17]} 24... Qxd6 {[%clk 0:00:19.3]} 25.
Nxe6 {[%clk 0:00:13.7]} 25... Qc6 {[%clk 0:00:18]} 26. Rb3 {[%clk 0:00:08.5]}
26... Bf6 {[%clk 0:00:16.3]} 27. g5 {[%clk 0:00:06.4]} 27... Be7 {[%clk
0:00:15]} 28. Nf4 {[%clk 0:00:04.2]} 28... Bd6 {[%clk 0:00:13.3]} 29. Qe6+
{[%clk 0:00:04]} 29... Kh8 {[%clk 0:00:13.5]} 30. d5 {[%clk 0:00:03.7]} 30...
Qc7 {[%clk 0:00:12.7]} 31. Nxg6+ {[%clk 0:00:02.8]} 31... hxg6 {[%clk
0:00:11.7]} 32. Rh3+ {[%clk 0:00:03.3]} 32... Kg7 {[%clk 0:00:11.4]} 33. Rh6
{[%clk 0:00:02.9]} 33... Qf7 {[%clk 0:00:10.5]} 34. Rh7+ {[%clk 0:00:02.5]}
34... Kxh7 {[%clk 0:00:10]} 35. Qxf7+ {[%clk 0:00:03]} 35... Ng7 {[%clk
0:00:10.9]} 36. Qd7 {[%clk 0:00:02.3]} 36... Bf4 {[%clk 0:00:09.5]} 37. Qc6
{[%clk 0:00:02]} 37... Rf8 {[%clk 0:00:06.8]} 38. Re7 {[%clk 0:00:02]} 38...
Bxg5 {[%clk 0:00:06.9]} 39. Rxg7+ {[%clk 0:00:01.8]} 39... Kxg7 {[%clk
0:00:07.8]} 40. Qd7+ {[%clk 0:00:02]} 40... Rf7 {[%clk 0:00:08.4]} 41. Qc6
{[%clk 0:00:01.7]} 41... Bf4 {[%clk 0:00:06]} 42. d6 {[%clk 0:00:01.9]} 42...
Rf6 {[%clk 0:00:06.3]} 43. d7 {[%clk 0:00:01.9]} 43... Rxc6 {[%clk 0:00:06]} 44.
d8=Q {[%clk 0:00:02.3]} 44... Rf6 {[%clk 0:00:05.4]} 45. Kh1 {[%clk 0:00:02.6]}
45... Rf7 {[%clk 0:00:05.4]} 46. Qd4+ {[%clk 0:00:02.3]} 46... Kh6 {[%clk
0:00:05.1]} 47. Qd5 {[%clk 0:00:02.5]} 47... g5 {[%clk 0:00:05.3]} 48. h3 {[%clk
0:00:03.1]} 48... Rf6 {[%clk 0:00:05.4]} 49. Kg2 {[%clk 0:00:03.4]} 49... Kg6
{[%clk 0:00:06]} 50. Qe4+ {[%clk 0:00:03.6]} 50... Kf7 {[%clk 0:00:06.2]} 51. a4
{[%clk 0:00:03.6]} 51... Bc7 {[%clk 0:00:06.1]} 52. Qd5+ {[%clk 0:00:03.7]}
52... Ke7 {[%clk 0:00:06.1]} 53. Qxg5 {[%clk 0:00:03.8]} 53... Bb6 {[%clk
0:00:06.2]} 54. Qg7+ {[%clk 0:00:03.6]} 54... Ke6 {[%clk 0:00:06.7]} 55. Qg8+
{[%clk 0:00:03.6]} 55... Ke5 {[%clk 0:00:07]} 56. Qe8+ {[%clk 0:00:03.6]} 56...
Re6 {[%clk 0:00:07.3]} 57. Qh8+ {[%clk 0:00:02.8]} 57... Kf5 {[%clk 0:00:07.6]}
58. Qf8+ {[%clk 0:00:02.7]} 58... Rf6 {[%clk 0:00:07.5]} 59. Qe8 {[%clk
0:00:02.3]} 59... Kg5 {[%clk 0:00:07.6]} 60. Qe4 {[%clk 0:00:02.1]} 60... Rf5
{[%clk 0:00:08]} 61. h4+ {[%clk 0:00:02.2]} 61... Kf6 {[%clk 0:00:08]} 62. f4
{[%clk 0:00:02.2]} 62... Rc5 {[%clk 0:00:07.2]} 63. Kg3 {[%clk 0:00:02.3]} 63...
Rc3+ {[%clk 0:00:07.5]} 64. Kg4 {[%clk 0:00:02.5]} 64... Re3 {[%clk 0:00:07.9]}
65. Qf5+ {[%clk 0:00:02.5]} 65... Ke7 {[%clk 0:00:08.1]} 66. h5 {[%clk
0:00:02.6]} 66... Re1 {[%clk 0:00:08.8]} 67. Kg5 {[%clk 0:00:02.7]} 67... Rg1+
{[%clk 0:00:09]} 68. Kh6 {[%clk 0:00:03]} 68... Kd6 {[%clk 0:00:08.4]} 69. Qe5+
{[%clk 0:00:03]} 69... Kc6 {[%clk 0:00:08.7]} 70. f5 {[%clk 0:00:03]} 70... Rg4
{[%clk 0:00:07.3]} 71. Qe6+ {[%clk 0:00:03]} 71... Kc5 {[%clk 0:00:07.2]} 72. f6
{[%clk 0:00:03.2]} 72... Bd8 {[%clk 0:00:04.9]} 73. f7 {[%clk 0:00:03]} 73...
Bg5+ {[%clk 0:00:05]} 74. Kh7 {[%clk 0:00:03.1]} 74... Rf4 {[%clk 0:00:05.7]}
75. Qe8 {[%clk 0:00:02.5]} 75... Rf6 {[%clk 0:00:04]} 76. f8=Q+ {[%clk
0:00:02.6]} 76... Kc4 {[%clk 0:00:03.3]} 77. Qxf6 {[%clk 0:00:02.8]} 77... Bxf6
{[%clk 0:00:04.2]} 78. Qf7+ {[%clk 0:00:03.2]} 78... Kb4 {[%clk 0:00:04]} 79.
Qxf6 {[%clk 0:00:04.1]} 79... Kxa4 {[%clk 0:00:04.9]} 80. Kg7 {[%clk 0:00:04.6]}
80... a5 {[%clk 0:00:05.6]} 81. h6 {[%clk 0:00:05.3]} 81... Ka3 {[%clk
0:00:06.5]} 82. h7 {[%clk 0:00:05.9]} 82... a4 {[%clk 0:00:07.4]} 83. h8=Q
{[%clk 0:00:06.2]} 83... Ka2 {[%clk 0:00:08.3]} 84. Qa6 {[%clk 0:00:06]} 84...
a3 {[%clk 0:00:08.2]} 85. Qxa3+ {[%clk 0:00:06.2]} 85... Kxa3 {[%clk 0:00:08]}
86. Kf7 {[%clk 0:00:06.6]} 86... Kb3 {[%clk 0:00:08.9]} 87. Qd4 {[%clk
0:00:06.5]} 87... Ka2 {[%clk 0:00:08.2]} 88. Qc3 {[%clk 0:00:06.4]} 88... Kb1
{[%clk 0:00:09.1]} 89. Qd2 {[%clk 0:00:06.7]} 89... Ka1 {[%clk 0:00:09.4]} 90.
Ke6 {[%clk 0:00:07.3]} 90... Kb1 {[%clk 0:00:10.3]} 91. Kd5 {[%clk 0:00:07.8]}
91... Ka1 {[%clk 0:00:11.2]} 1-0

[Event "Late-Titled-Tuesday-Blitz-September-12-2023"]
[Site "Chess.com"]
[Date "2023.09.12"]
[Round "5"]
[White "Fandorine"]
[Black "thedjoker98"]
[Result "1/2-1/2"]
[WhiteElo "2895"]
[BlackElo "2623"]
[TimeControl "180+1"]
[EndTime "14:55:07 PDT"]
[Termination "Game drawn - insufficient material"]

1. Nf3 {[%clk 0:03:00.9]} 1... d5 {[%clk 0:02:59.2]} 2. c4 {[%clk 0:02:59.7]}
2... e6 {[%clk 0:02:57.9]} 3. g3 {[%clk 0:02:59.6]} 3... Nf6 {[%clk 0:02:55.6]}
4. Bg2 {[%clk 0:03:00.1]} 4... Be7 {[%clk 0:02:56.2]} 5. O-O {[%clk 0:03:00.6]}
5... O-O {[%clk 0:02:56.9]} 6. b3 {[%clk 0:03:01.3]} 6... d4 {[%clk 0:02:57]} 7.
Bb2 {[%clk 0:02:52.3]} 7... c5 {[%clk 0:02:56.4]} 8. e3 {[%clk 0:02:51]} 8...
Nc6 {[%clk 0:02:55.8]} 9. exd4 {[%clk 0:02:51.2]} 9... cxd4 {[%clk 0:02:56.7]}
10. Re1 {[%clk 0:02:51.4]} 10... a5 {[%clk 0:02:54.6]} 11. Ne5 {[%clk
0:02:45.1]} 11... Nxe5 {[%clk 0:02:54.2]} 12. Rxe5 {[%clk 0:02:46]} 12... Nd7
{[%clk 0:02:52.6]} 13. Rb5 {[%clk 0:02:41.4]} 13... Nc5 {[%clk 0:02:52.2]} 14.
Ba3 {[%clk 0:02:15.3]} 14... Qc7 {[%clk 0:02:50.6]} 15. d3 {[%clk 0:02:13.9]}
15... Ra7 {[%clk 0:02:45.6]} 16. Bb2 {[%clk 0:02:08.8]} 16... e5 {[%clk
0:02:42.9]} 17. Na3 {[%clk 0:01:32.2]} 17... Bd7 {[%clk 0:02:39]} 18. Qe2 {[%clk
0:01:30.7]} 18... Ra6 {[%clk 0:02:35.9]} 19. Bxd4 {[%clk 0:01:23.2]} 19... Bxb5
{[%clk 0:02:03.7]} 20. Nxb5 {[%clk 0:01:21.9]} 20... Qd8 {[%clk 0:02:03.9]} 21.
Bxc5 {[%clk 0:01:06.8]} 21... Bxc5 {[%clk 0:02:02.8]} 22. Bxb7 {[%clk
0:01:07.1]} 22... Re6 {[%clk 0:02:00.2]} 23. Kg2 {[%clk 0:01:01.4]} 23... Qf6
{[%clk 0:01:53.2]} 24. Bd5 {[%clk 0:01:00.1]} 24... Re7 {[%clk 0:01:53]} 25. Rf1
{[%clk 0:00:59.9]} 25... g6 {[%clk 0:01:47.3]} 26. h4 {[%clk 0:00:58.1]} 26...
Kg7 {[%clk 0:01:40.6]} 27. Nc3 {[%clk 0:00:54.1]} 27... Bd4 {[%clk 0:01:37.1]}
28. Nb5 {[%clk 0:00:37.1]} 28... Bc5 {[%clk 0:01:36.2]} 29. h5 {[%clk
0:00:35.9]} 29... Qg5 {[%clk 0:01:33.4]} 30. Nc3 {[%clk 0:00:31.5]} 30... f5
{[%clk 0:01:31.5]} 31. Bc6 {[%clk 0:00:23.2]} 31... Re6 {[%clk 0:01:03.6]} 32.
Bd5 {[%clk 0:00:22.5]} 32... Re7 {[%clk 0:01:03.7]} 33. Rh1 {[%clk 0:00:21.5]}
33... Bd4 {[%clk 0:00:58.3]} 34. Nb5 {[%clk 0:00:21.2]} 34... Bc5 {[%clk
0:00:58.3]} 35. h6+ {[%clk 0:00:14]} 35... Kh8 {[%clk 0:00:58.3]} 36. Qf3 {[%clk
0:00:14.6]} 36... Rf6 {[%clk 0:00:47.3]} 37. Nc3 {[%clk 0:00:06.8]} 37... Bd4
{[%clk 0:00:40.2]} 38. Ne2 {[%clk 0:00:07]} 38... e4 {[%clk 0:00:36]} 39. Qf4
{[%clk 0:00:06.7]} 39... Qxf4 {[%clk 0:00:30.2]} 40. Nxf4 {[%clk 0:00:07.6]}
40... exd3 {[%clk 0:00:20]} 41. Nxd3 {[%clk 0:00:08.5]} 41... g5 {[%clk
0:00:20.1]} 42. c5 {[%clk 0:00:06.7]} 42... f4 {[%clk 0:00:18.8]} 43. gxf4
{[%clk 0:00:06.6]} 43... gxf4 {[%clk 0:00:19.7]} 44. Kf3 {[%clk 0:00:07.3]}
44... Rf5 {[%clk 0:00:18.2]} 45. Be4 {[%clk 0:00:07.2]} 45... Rg5 {[%clk
0:00:18.2]} 46. c6 {[%clk 0:00:06.9]} 46... Bb6 {[%clk 0:00:13.7]} 47. Rd1
{[%clk 0:00:06.6]} 47... Rh5 {[%clk 0:00:10.6]} 48. Nb2 {[%clk 0:00:07]} 48...
Rxh6 {[%clk 0:00:10.6]} 49. Nc4 {[%clk 0:00:06.2]} 49... Bc7 {[%clk 0:00:10.9]}
50. Bf5 {[%clk 0:00:05.1]} 50... Rf6 {[%clk 0:00:10]} 51. Rd5 {[%clk 0:00:04.8]}
51... Rxc6 {[%clk 0:00:09.7]} 52. Nxa5 {[%clk 0:00:03.3]} 52... Bxa5 {[%clk
0:00:09]} 53. Rxa5 {[%clk 0:00:03.4]} 53... Rf6 {[%clk 0:00:09]} 54. Kxf4 {[%clk
0:00:03.6]} 54... Re2 {[%clk 0:00:08.5]} 55. f3 {[%clk 0:00:04.3]} 55... Kg7
{[%clk 0:00:08.8]} 56. b4 {[%clk 0:00:04.9]} 56... h5 {[%clk 0:00:08.8]} 57. a4
{[%clk 0:00:04.1]} 57... Rb2 {[%clk 0:00:08.5]} 58. b5 {[%clk 0:00:03.7]} 58...
h4 {[%clk 0:00:08.8]} 59. Ra7+ {[%clk 0:00:03.9]} 59... Kg8 {[%clk 0:00:08.2]}
60. Kg5 {[%clk 0:00:03.2]} 60... Rf8 {[%clk 0:00:08.1]} 61. Be6+ {[%clk
0:00:03.5]} 61... Kh8 {[%clk 0:00:07.8]} 62. Kxh4 {[%clk 0:00:03.1]} 62... Rxf3
{[%clk 0:00:07.9]} 63. Bg4 {[%clk 0:00:03.8]} 63... Rf8 {[%clk 0:00:07.1]} 64.
Kh5 {[%clk 0:00:02.9]} 64... Rd2 {[%clk 0:00:06.7]} 65. b6 {[%clk 0:00:02.9]}
65... Rd5+ {[%clk 0:00:06.5]} 66. Kh4 {[%clk 0:00:03]} 66... Rd4 {[%clk
0:00:06.3]} 67. Kh5 {[%clk 0:00:03.2]} 67... Rd5+ {[%clk 0:00:06.1]} 68. Kh4
{[%clk 0:00:03.5]} 68... Rd4 {[%clk 0:00:06.5]} 69. Ra5 {[%clk 0:00:03.9]} 69...
Rff4 {[%clk 0:00:05.3]} 70. Rh5+ {[%clk 0:00:04.6]} 70... Kg7 {[%clk 0:00:05.5]}
71. Rg5+ {[%clk 0:00:05.3]} 71... Kf6 {[%clk 0:00:05.9]} 72. b7 {[%clk
0:00:05.4]} 72... Rb4 {[%clk 0:00:06.1]} 73. Kh5 {[%clk 0:00:02.2]} 73... Rxb7
{[%clk 0:00:05.6]} 74. Rg6+ {[%clk 0:00:02.9]} 74... Ke5 {[%clk 0:00:05.9]} 75.
Re6+ {[%clk 0:00:03]} 75... Kd5 {[%clk 0:00:06]} 76. Rg6 {[%clk 0:00:02.9]}
76... Rh7+ {[%clk 0:00:06]} 77. Kg5 {[%clk 0:00:03.5]} 77... Rf1 {[%clk
0:00:05.5]} 78. Be6+ {[%clk 0:00:03.6]} 78... Kc5 {[%clk 0:00:05.8]} 79. a5
{[%clk 0:00:03.4]} 79... Rg1+ {[%clk 0:00:05.7]} 80. Bg4 {[%clk 0:00:04.1]}
80... Kb5 {[%clk 0:00:04.4]} 81. a6 {[%clk 0:00:04.4]} 81... Ra7 {[%clk
0:00:03.9]} 82. Kh6 {[%clk 0:00:03.7]} 82... Rxg4 {[%clk 0:00:03.9]} 83. Rxg4
{[%clk 0:00:03.9]} 83... Rxa6+ {[%clk 0:00:04.8]} 84. Kh5 {[%clk 0:00:04.3]}
84... Rc6 {[%clk 0:00:05.7]} 85. Rg5+ {[%clk 0:00:04.6]} 85... Rc5 {[%clk
0:00:06.6]} 86. Rxc5+ {[%clk 0:00:04.7]} 86... Kxc5 {[%clk 0:00:07.5]} 1/2-1/2

[Event "Late-Titled-Tuesday-Blitz-September-12-2023"]
[Site "Chess.com"]
[Date "2023.09.12"]
[Round "6"]
[White "Chessdreamer2020"]
[Black "zeitnot2006"]
[Result "0-1"]
[WhiteElo "2524"]
[BlackElo "2754"]
[TimeControl "180+1"]
[EndTime "14:58:46 PDT"]
[Termination "zeitnot2006 won by resignation"]

1. e4 {[%clk 0:02:58.5]} 1... c5 {[%clk 0:02:59.4]} 2. Nf3 {[%clk 0:02:58.7]}
2... Nc6 {[%clk 0:02:59.6]} 3. Bb5 {[%clk 0:02:58.6]} 3... Qb6 {[%clk
0:02:59.2]} 4. Nc3 {[%clk 0:02:57.6]} 4... e6 {[%clk 0:02:59.2]} 5. O-O {[%clk
0:02:56.4]} 5... Nge7 {[%clk 0:02:57]} 6. Re1 {[%clk 0:02:56]} 6... a6 {[%clk
0:02:56.1]} 7. Bf1 {[%clk 0:02:55.2]} 7... Ng6 {[%clk 0:02:50.1]} 8. b3 {[%clk
0:02:54.3]} 8... Bd6 {[%clk 0:02:47]} 9. Bb2 {[%clk 0:02:54.7]} 9... O-O {[%clk
0:02:46.7]} 10. g3 {[%clk 0:02:36.6]} 10... Qc7 {[%clk 0:02:46.7]} 11. Bg2
{[%clk 0:02:35.3]} 11... b5 {[%clk 0:02:44.5]} 12. d4 {[%clk 0:02:30]} 12...
cxd4 {[%clk 0:02:42.6]} 13. Nxd4 {[%clk 0:02:30.9]} 13... Nxd4 {[%clk
0:02:40.3]} 14. Qxd4 {[%clk 0:02:31.8]} 14... Be5 {[%clk 0:02:36.2]} 15. Nxb5
{[%clk 0:02:15.9]} 15... axb5 {[%clk 0:02:33.1]} 16. Qxe5 {[%clk 0:02:15.8]}
16... Nxe5 {[%clk 0:02:33]} 17. Bxe5 {[%clk 0:02:16.7]} 17... Qxe5 {[%clk
0:02:32.8]} 0-1

[Event "Late-Titled-Tuesday-Blitz-September-12-2023"]
[Site "Chess.com"]
[Date "2023.09.12"]
[Round "6"]
[White "chess94cu"]
[Black "HajiyevKanan"]
[Result "1-0"]
[WhiteElo "2685"]
[BlackElo "2508"]
[TimeControl "180+1"]
[EndTime "14:58:52 PDT"]
[Termination "chess94cu won by resignation"]

1. e4 {[%clk 0:02:40.6]} 1... c6 {[%clk 0:02:59.4]} 2. c4 {[%clk 0:02:39.8]}
2... d5 {[%clk 0:02:59.9]} 3. exd5 {[%clk 0:02:40.7]} 3... cxd5 {[%clk
0:03:00.6]} 4. d4 {[%clk 0:02:41]} 4... Nf6 {[%clk 0:03:01.1]} 5. Nc3 {[%clk
0:02:40.9]} 5... e6 {[%clk 0:03:01.8]} 6. Nf3 {[%clk 0:02:40.7]} 6... Bb4 {[%clk
0:03:02.2]} 7. cxd5 {[%clk 0:02:40.8]} 7... Nxd5 {[%clk 0:03:02.5]} 8. Qc2
{[%clk 0:02:41.6]} 8... Nc6 {[%clk 0:03:01]} 9. Bd3 {[%clk 0:02:42]} 9... Nf6
{[%clk 0:02:56.1]} 10. O-O {[%clk 0:02:39.6]} 10... O-O {[%clk 0:02:49.5]} 11.
Rd1 {[%clk 0:02:39.4]} 11... b6 {[%clk 0:02:45.9]} 12. Ne4 {[%clk 0:02:25]}
12... Bb7 {[%clk 0:02:41.6]} 13. Nxf6+ {[%clk 0:02:24.5]} 13... Qxf6 {[%clk
0:02:42.5]} 14. Bg5 {[%clk 0:02:14.8]} 14... Nxd4 {[%clk 0:02:36.4]} 15. Bxh7+
{[%clk 0:02:15.3]} 15... Kh8 {[%clk 0:02:36.1]} 16. Rxd4 {[%clk 0:02:16]} 1-0

[Event "Late-Titled-Tuesday-Blitz-September-12-2023"]
[Site "Chess.com"]
[Date "2023.09.12"]
[Round "6"]
[White "Gogolev_Artemy"]
[Black "hellokostya"]
[Result "0-1"]
[WhiteElo "2409"]
[BlackElo "2595"]
[TimeControl "180+1"]
[EndTime "14:59:19 PDT"]
[Termination "hellokostya won by resignation"]

1. d4 {[%clk 0:02:59.7]} 1... Nf6 {[%clk 0:02:59.4]} 2. Nc3 {[%clk 0:02:59.6]}
2... d5 {[%clk 0:02:59]} 3. Bf4 {[%clk 0:03:00.2]} 3... g6 {[%clk 0:02:58.9]} 4.
e3 {[%clk 0:03:00.1]} 4... Bg7 {[%clk 0:02:59.4]} 5. h4 {[%clk 0:03:00.4]} 5...
h5 {[%clk 0:02:58.8]} 6. Be2 {[%clk 0:02:59.7]} 6... O-O {[%clk 0:02:58.4]} 7.
Nf3 {[%clk 0:02:59.5]} 7... c5 {[%clk 0:02:58.3]} 8. Ne5 {[%clk 0:02:58.6]} 8...
Nc6 {[%clk 0:02:56.5]} 9. f3 {[%clk 0:02:54.7]} 9... cxd4 {[%clk 0:02:55.9]} 10.
exd4 {[%clk 0:02:55.6]} 10... Bf5 {[%clk 0:02:54.3]} 11. Qd2 {[%clk 0:02:54.9]}
11... Rc8 {[%clk 0:02:50.7]} 12. g4 {[%clk 0:02:37.2]} 12... hxg4 {[%clk
0:02:47.2]} 13. fxg4 {[%clk 0:02:33]} 13... Ne4 {[%clk 0:02:39.6]} 14. Nxe4
{[%clk 0:02:05.9]} 14... Bxe4 {[%clk 0:02:40.5]} 15. Rg1 {[%clk 0:01:54]} 15...
Nxe5 {[%clk 0:02:39.8]} 16. dxe5 {[%clk 0:01:36.2]} 16... Rxc2 {[%clk
0:02:36.1]} 0-1

[Event "Late-Titled-Tuesday-Blitz-September-12-2023"]
[Site "Chess.com"]
[Date "2023.09.12"]
[Round "6"]
[White "VitorBronson"]
[Black "Aleksandar-Topalov"]
[Result "0-1"]
[WhiteElo "2528"]
[BlackElo "2371"]
[TimeControl "180+1"]
[EndTime "15:00:08 PDT"]
[Termination "Aleksandar-Topalov won by resignation"]

1. e4 {[%clk 0:03:00.9]} 1... e6 {[%clk 0:02:59.8]} 2. d4 {[%clk 0:03:00.7]}
2... d5 {[%clk 0:03:00]} 3. Nc3 {[%clk 0:03:01.3]} 3... Bb4 {[%clk 0:02:59.4]}
4. e5 {[%clk 0:03:02]} 4... Qd7 {[%clk 0:02:58.9]} 5. Qg4 {[%clk 0:02:56.3]}
5... Bf8 {[%clk 0:02:58.6]} 6. Bd3 {[%clk 0:02:52.2]} 6... b6 {[%clk 0:02:58.5]}
7. h4 {[%clk 0:02:47.9]} 7... h5 {[%clk 0:02:57.9]} 8. Qg3 {[%clk 0:02:47.5]}
8... Ba6 {[%clk 0:02:58.1]} 9. Bd2 {[%clk 0:02:45]} 9... Bxd3 {[%clk 0:02:55]}
10. Qxd3 {[%clk 0:02:44.2]} 10... c5 {[%clk 0:02:54.7]} 11. dxc5 {[%clk
0:02:42.4]} 11... bxc5 {[%clk 0:02:54.6]} 12. Nh3 {[%clk 0:02:37.3]} 12... Nc6
{[%clk 0:02:51.6]} 13. f4 {[%clk 0:02:35.1]} 13... Nb4 {[%clk 0:02:50.4]} 14.
Qb5 {[%clk 0:02:30.3]} 14... Nxc2+ {[%clk 0:02:49.7]} 15. Kf2 {[%clk 0:02:30.4]}
15... Nxa1 {[%clk 0:02:49.6]} 16. Rxa1 {[%clk 0:02:29]} 16... Qxb5 {[%clk
0:02:45.8]} 17. Nxb5 {[%clk 0:02:29.6]} 17... Kd7 {[%clk 0:02:45.7]} 18. Ng5
{[%clk 0:02:26.8]} 18... Nh6 {[%clk 0:02:45.8]} 19. Nc3 {[%clk 0:02:22]} 19...
Be7 {[%clk 0:02:38.3]} 20. Nf3 {[%clk 0:02:20.1]} 20... Nf5 {[%clk 0:02:36.6]}
21. g3 {[%clk 0:02:19.8]} 21... Rab8 {[%clk 0:02:31.2]} 22. b3 {[%clk
0:02:20.3]} 22... Rhc8 {[%clk 0:02:29.9]} 23. Rc1 {[%clk 0:02:20.3]} 23... c4
{[%clk 0:02:28.9]} 24. Ne2 {[%clk 0:02:16.8]} 24... cxb3 {[%clk 0:02:26.9]} 25.
Rxc8 {[%clk 0:02:17]} 25... Kxc8 {[%clk 0:02:22.7]} 26. axb3 {[%clk 0:02:16.8]}
26... Rxb3 {[%clk 0:02:22.1]} 27. Nfd4 {[%clk 0:02:16.9]} 27... Nxd4 {[%clk
0:02:20.6]} 28. Nxd4 {[%clk 0:02:17.2]} 28... Rd3 {[%clk 0:02:08.6]} 29. Be3
{[%clk 0:02:17]} 29... Rxe3 {[%clk 0:02:08.5]} 30. Kxe3 {[%clk 0:02:17]} 30...
Bc5 {[%clk 0:02:08.6]} 31. Kd3 {[%clk 0:02:17.5]} 31... Bxd4 {[%clk 0:02:08.8]}
32. Kxd4 {[%clk 0:02:18.1]} 32... g6 {[%clk 0:02:08.8]} 33. Kc5 {[%clk
0:02:15.1]} 33... Kc7 {[%clk 0:02:07.3]} 34. Kb5 {[%clk 0:02:14.8]} 34... Kb7
{[%clk 0:02:06.7]} 35. Kc5 {[%clk 0:02:15]} 35... a6 {[%clk 0:02:06.8]} 36. Kd6
{[%clk 0:02:15.1]} 36... d4 {[%clk 0:02:07.2]} 37. Kd7 {[%clk 0:02:16]} 37... d3
{[%clk 0:02:06.3]} 38. Ke7 {[%clk 0:02:16.7]} 38... d2 {[%clk 0:02:06.9]} 39.
Kxf7 {[%clk 0:02:17.6]} 39... d1=Q {[%clk 0:02:07.4]} 40. Kf6 {[%clk 0:02:17.6]}
40... Qg4 {[%clk 0:02:06.9]} 41. f5 {[%clk 0:02:17.3]} 41... Qxf5+ {[%clk
0:02:06.5]} 0-1

[Event "Late-Titled-Tuesday-Blitz-September-12-2023"]
[Site "Chess.com"]
[Date "2023.09.12"]
[Round "6"]
[White "sofaceindisguise"]
[Black "chessisveryfun1264"]
[Result "1-0"]
[WhiteElo "2781"]
[BlackElo "2537"]
[TimeControl "180+1"]
[EndTime "15:00:19 PDT"]
[Termination "sofaceindisguise won by resignation"]

1. d4 {[%clk 0:02:59.5]} 1... e6 {[%clk 0:02:57.2]} 2. c4 {[%clk 0:03:00.4]}
2... b6 {[%clk 0:02:56.3]} 3. Nc3 {[%clk 0:02:58.9]} 3... Bb4 {[%clk 0:02:56.7]}
4. Bd2 {[%clk 0:02:55.1]} 4... Bb7 {[%clk 0:02:56.7]} 5. Nf3 {[%clk 0:02:55.5]}
5... f5 {[%clk 0:02:56.6]} 6. a3 {[%clk 0:02:53.9]} 6... Bxc3 {[%clk 0:02:56.3]}
7. Bxc3 {[%clk 0:02:54.8]} 7... Nf6 {[%clk 0:02:56.5]} 8. Nd2 {[%clk 0:02:54.4]}
8... O-O {[%clk 0:02:56.5]} 9. e3 {[%clk 0:02:54.2]} 9... d6 {[%clk 0:02:56.6]}
10. f3 {[%clk 0:02:53.6]} 10... c5 {[%clk 0:02:56.5]} 11. Bd3 {[%clk 0:02:51.3]}
11... Nc6 {[%clk 0:02:53.9]} 12. O-O {[%clk 0:02:50.8]} 12... f4 {[%clk
0:02:45.9]} 13. d5 {[%clk 0:02:38]} 13... Ne7 {[%clk 0:02:35.2]} 14. Ne4 {[%clk
0:02:20]} 14... Nxe4 {[%clk 0:02:31.2]} 15. Bxe4 {[%clk 0:02:18.9]} 15... e5
{[%clk 0:02:28.2]} 16. exf4 {[%clk 0:02:18.8]} 16... Rxf4 {[%clk 0:02:27.1]} 17.
Qd3 {[%clk 0:02:19.5]} 17... h6 {[%clk 0:02:19.6]} 18. g3 {[%clk 0:02:19.7]}
18... Rf6 {[%clk 0:02:19.4]} 19. f4 {[%clk 0:02:19.7]} 19... Qd7 {[%clk
0:01:39.7]} 20. fxe5 {[%clk 0:02:15.9]} 20... Rxf1+ {[%clk 0:01:40.1]} 21. Rxf1
{[%clk 0:02:15.3]} 21... dxe5 {[%clk 0:01:41]} 22. Bxe5 {[%clk 0:02:14.4]} 22...
Re8 {[%clk 0:01:41.6]} 23. Bc3 {[%clk 0:02:07.7]} 23... Qd6 {[%clk 0:01:40]} 24.
Qf3 {[%clk 0:02:06.3]} 24... Rd8 {[%clk 0:01:35.4]} 25. Qf7+ {[%clk 0:02:05.4]}
1-0